Cogmind - Beta 13 @@@ ROGUE MODE // 2024.05.12 @ 21:57:59 Player: SaltHuntress Result: Destroyed by G-47 Trooper with Particle Gun Performance ------------- Evolutions (1) 500 Regions Visited (3) 600 Robots Destroyed (57) 285 Value Destroyed (1584) 1584 Prototype IDs (1) 20 Alien Tech Used (0) 0 Bonus (76) 76 TOTAL SCORE: 3065 Bonus ------- High Alert Combat Kills 76 Cogmind --------- Core Integrity 0/400 Matter 47/300 Energy 277/280 System Corruption 23% Temperature Cool (9) Movement Treading (240) Ox1 Location -9/Materials Parts ------- > --- POWER (1) -------- Heavy Ion Engine > --- PROPULSION (3) --- Light Treads > --- UTILITY (3) ------ Medium Storage Unit Signal Interpreter > --- WEAPON (2) ------- Heavy Assault Rifle Light Cannon > --- INVENTORY (10) --- Light Ion Engine Heat Sink Visual Processing Unit Terrain Scanner Weapon Shielding Medium Armor Plating Backup Laser I Maul Peak State ------------ > --- POWER ------------ Heavy Ion Engine > --- PROPULSION ------- Aluminum Leg Aluminum Leg Improved Aluminum Leg > --- UTILITY ---------- Medium Storage Unit Terrain Scanner Weapon Shielding > --- WEAPON ----------- Heavy Assault Rifle Rocket Launcher > --- INVENTORY -------- Light Ion Engine Light Treads Heat Sink Visual Processing Unit Signal Interpreter Weapon Shielding Backup Laser I Light Cannon Maul [Rating: 15] Favorites ----------- Power Ion Engine Engine Ion Engine Propulsion Aluminum Leg Treads Light Treads Leg Aluminum Leg Wheel Wheel Utility Medium Storage Unit Device Terrain Scanner Storage Medium Storage Unit Processor Visual Processing Unit Protection Weapon Shielding Weapon Light Assault Rifle Energy Gun EM Pulse Gun Ballistic Gun Light Assault Rifle Ballistic Cannon Light Cannon Launcher Rocket Launcher Impact Weapon Maul Slashing Weapon Mining Claw Build | -11 -10 -10 -9 ------- Run | Yrd Mat Min Mat Slots Evolved 2 | . . . 2 Power . | . . . . Propulsion 1 | . . . 1 Utility 1 | . . . 1 Weapon . | . . . . Parts Attached 55 | 6 14 10 25 Power 8 | 1 1 2 4 Engine 8 | 1 1 2 4 Core . | . . . . Reactor . | . . . . Propulsion 17 | 2 4 1 10 Treads 3 | . . . 3 Leg 12 | 2 2 1 7 Wheel 2 | . 2 . . Hover . | . . . . Flight . | . . . . Utility 10 | . 5 . 5 Device 2 | . 1 . 1 Storage 2 | . 1 . 1 Processor 2 | . 1 . 1 Hackware . | . . . . Protection 4 | . 2 . 2 Artifact . | . . . . Weapon 20 | 3 4 7 6 Energy Gun 6 | 2 1 3 . Energy Cannon . | . . . . Ballistic Gun 5 | 1 1 2 1 Ballistic Cannon 1 | . . . 1 Launcher 5 | . 1 2 2 Special Weapon . | . . . . Impact Weapon 2 | . . . 2 Slashing Weapon 1 | . 1 . . Piercing Weapon . | . . . . Special Melee Weapon . | . . . . Unidentified Prototypes 1 | . . . 1 Corrupted Parts 3 | . . . 3 System Corruption 23 | . . . 23 Parts Lost 19 | . 2 9 8 Power 4 | . 1 2 1 Propulsion 7 | . 1 2 4 Utility 2 | . . . 2 Weapon 6 | . . 5 1 Highest Loss Streak 5 | . 2 3 5 To Critical Strikes . | . . . . Average Slot Usage (%) 85 | . 95 82 83 Engine 11 | . 13 10 10 Treads 2 | . . . 5 Leg 17 | . 8 19 19 Wheel 4 | . 19 . . Device 2 | . 3 . 3 Storage 10 | . 13 14 8 Processor 7 | . 5 14 3 Protection 7 | . 3 . 13 Energy Gun 7 | . 12 11 3 Ballistic Gun 6 | . 8 10 3 Launcher 2 | . 4 1 2 Impact Weapon 3 | . . . 7 Naked Turns . | . . . . Heaviest Build 27 | 6 20 20 27 Greatest Support 40 | 20 20 20 40 Greatest Overweight (x) 3 | . . 1 3 Average Overweight (x) . | . . . . Largest Inventory Capacity 10 | 5 10 10 10 Average Capacity 9 | 5 9 10 8 Most Carried 10 | 5 10 7 10 Average Carried 5 | 2 6 4 4 Final Capacity 10 | 5 10 10 10 Final Carried 8 | 5 6 3 8 Class Distribution -------------------- 83% | Mutant 16% | Scavenger-Mutant Dominant Class ---------------- Mutant | -10/Materials Mutant | -10/Mines Mutant | -9/Materials Resources | -11 -10 -10 -9 ----------- Run | Yrd Mat Min Mat Matter Collected 879 | 263 183 127 306 Remotely . | . . . . Salvage Created 1337 | 33 362 113 829 Parts 100 | 2 29 6 63 Haulers Intercepted 2 | . 1 . 1 Recyclers Shooed 1 | . . 1 . Parts Field Recycled . | . . . . Retrieved Matter . | . . . . Parts Self-Destructed . | . . . . Prevented . | . . . . Kills | -11 -10 -10 -9 ------- Run | Yrd Mat Min Mat Combat Hostiles Destroyed 44 | 1 10 7 26 Melee 14 | . 2 3 9 Guns 9 | 1 3 2 3 Cannons 1 | . . . 1 AOE 16 | . 5 2 9 Classes Destroyed 8 | 1 4 1 2 Worker 2 | . 2 . . Builder 2 | . . . 2 Hauler 2 | . 1 . 1 Operator 1 | . . . 1 Watcher 6 | . 2 . 4 Swarmer 13 | . 3 3 7 Grunt 21 | 1 7 2 11 Sentry 10 | . . 2 8 Best Kill Streak 9 | 1 9 3 9 Combat Bots Only 9 | 1 7 3 9 Max Kills in Single Turn 4 | 1 2 1 4 Gunslinging . | . . . . Exploded 2 | . 2 1 2 Melee 1 | . 1 1 1 Uniques/NPCs Destroyed . | . . . . Combat | -11 -10 -10 -9 -------- Run | Yrd Mat Min Mat Hostile Shots Fired 278 | 3 29 79 167 Missed 78 | . 7 25 46 Damage Taken 2692 | 33 333 749 1577 Core 599 | . 86 112 401 Absorbed by Shields . | . . . . Redirected to Shielding 64 | . 12 . 52 Regen/Repaired (Parts) 108 | . . . 108 Core Remaining (%) 60 | 100 . 20 . Volleys Fired 97 | 3 28 37 29 Largest 2 | 2 2 2 2 Hottest 70 | 60 70 60 58 Shots Fired 139 | 6 45 42 46 Gun 98 | 6 36 34 22 Cannon 9 | . . . 9 Launcher 32 | . 9 8 15 Special . | . . . . Kinetic 68 | 3 8 27 30 Thermal 7 | . . 6 1 Explosive 32 | . 9 8 15 Electromagnetic 32 | 3 28 1 . Robot Hit Streak 11 | 1 11 5 6 Robot Miss Streak 4 | 3 3 3 4 Penetration Max . | . . . . Secondary Targets . | . . . . Shots Hit Robots 101 | 2 27 21 51 Core Hits 88 | 2 22 24 40 Critical Kills 2 | . . . 2 Critical Parts Destroyed 7 | . . . 7 Critical Strikes 11 | . 1 . 10 Blast 1 | . . . 1 Corrupt 1 | . 1 . . Smash 9 | . . . 9 Melee Attacks 60 | . 7 . 53 Impact 53 | . . . 53 Slashing 7 | . 7 . . Piercing . | . . . . Sneak Attacks . | . . . . Combat Hostiles . | . . . . Follow-up Attacks . | . . . . Damage Inflicted 3924 | 17 1057 662 2188 Guns 599 | 17 239 159 184 Cannons 36 | . . . 36 Explosions 2265 | . 695 477 1093 Melee 998 | . 123 . 875 Ramming 26 | . . 26 . Kinetic 360 | 17 17 116 210 Thermal 673 | . 296 218 159 Explosive 1634 | . 399 291 944 Electromagnetic 233 | . 222 11 . Impact 875 | . . . 875 Slashing 123 | . 123 . . Piercing . | . . . . Highest Corruption 23 | . . . 23 Average Corruption 18 | . . . 18 Corruption Purged . | . . . . Corruption Blocked . | . . . . Effects 38 | . . . 38 Message Errors 11 | . . . 11 Matter Fused 5 | . . . 5 Heat Flow Errors 3 | . . . 3 Energy Discharges 3 | . . . 3 Parts Rejected 1 | . . . 1 Data Loss (minor) 6 | . . . 6 Data Loss (major) 2 | . . . 2 Misfires 2 | . . . 2 Alerts 1 | . . . 1 Weapon Failures 4 | . . . 4 Overload Shots . | . . . . Overflow Damage 489 | . 114 . 375 Projectiles . | . . . . Explosions 130 | . 114 . 16 Melee 359 | . . . 359 Knockbacks 1 | . . . 1 Impact 1 | . . . 1 Kinetic . | . . . . Secondary . | . . . . Self-Inflicted Damage 185 | . 78 27 80 Shots 8 | . 3 3 2 Rammed . | . . . . Targets Rammed 15 | . . 15 . Kicked 15 | . . 15 . Crushed . | . . . . Highest Temperature 183 | 58 108 35 183 Average Temperature 29 | 30 33 11 37 Received Heat Transfer 1083 | 18 150 312 603 Siege Activations . | . . . . Robots Corrupted . | . . . . Combat Hostiles . | . . . . Parts Fried 13 | . 1 . 12 Impact Corruptions 15 | . . . 15 Robots Melted . | . . . . Combat Hostiles . | . . . . Parts Melted . | . . . . Heat Transferred 712 | . 300 275 137 Parts Sabotaged . | . . . . Parts Stolen . | . . . . Parts Stripped . | . . . . Power Chain Reactions 2 | . 1 1 . Alert | -11 -10 -10 -9 ------- Run | Yrd Mat Min Mat Peak Influence 585 | 20 358 188 585 Initial 101 | . 13 101 31 Average 127 | 5 134 89 161 Maximum Alert Level 2 | . 1 . 2 Low Security (%) 79 | 100 75 100 68 Level 1 16 | . 24 . 25 Level 2 3 | . . . 6 Level 3 . | . . . . Level 4 . | . . . . Level 5 . | . . . . High Security . | . . . . Max Security . | . . . . Squads Dispatched 7 | . 3 . 4 Investigation 2 | . 1 . 1 Extermination . | . . . . Reinforcement 5 | . 2 . 3 Assault . | . . . . Garrison . | . . . . Intercept . | . . . . Searches Triggered . | . . . . Construction Impeded 1 | . . . 1 Haulers Reinforced . | . . . . Active Scanning Responses . | . . . . Cargo Convoy Interrupts . | . . . . Stealth | -11 -10 -10 -9 --------- Run | Yrd Mat Min Mat Distress Signals 4 | . 1 . 3 Communications Jammed . | . . . . Distress Signals . | . . . . Times Spotted 68 | 1 16 7 44 Peak Tracking Total 8 | 1 7 3 8 Tactical Retreats 4 | . . . 4 Traps | -11 -10 -10 -9 ------- Run | Yrd Mat Min Mat Traps Triggered . | . . . . Indirectly . | . . . . Trap Hack Attempts . | . . . . Triggered . | . . . . Disarmed . | . . . . Reprogrammed . | . . . . Reused . | . . . . Traps Extracted . | . . . . Installed . | . . . . Triggered . | . . . . Machines | -11 -10 -10 -9 ---------- Run | Yrd Mat Min Mat Machines Disabled 13 | . 5 3 5 Max in Single Turn 4 | . 4 2 1 Machines Repaired . | . . . . Machines Dismantled . | . . . . Machines Sabotaged . | . . . . Overloaded Fab Kills . | . . . . Hacking | -11 -10 -10 -9 --------- Run | Yrd Mat Min Mat Machines Accessed 9 | . 3 . 6 Terminals 6 | . 2 . 4 Fabricators . | . . . . Repair Stations 1 | . . . 1 Recycling Units 2 | . 1 . 1 Scanalyzers . | . . . . Garrison Access . | . . . . Total Hacks 29 | . 8 . 21 Successful 14 | . 4 . 10 Failed 15 | . 4 . 11 Catastrophic 2 | . . . 2 Database Lockouts . | . . . . Manual . | . . . . Terminals 18 | . 4 . 14 Fabricators . | . . . . Repair Stations 6 | . . . 6 Recycling Units 5 | . 4 . 1 Scanalyzers . | . . . . Garrison Access . | . . . . Terminal Hacks 6 | . 1 . 5 Record 1 | . . . 1 Robot Analysis 1 | . . . 1 Alert Level 1 | . . . 1 Unreport Threat 1 | . . . 1 Locate Traps 1 | . 1 . . Dispatch Records 1 | . . . 1 Fabricator Hacks . | . . . . Repair Station Hacks 4 | . . . 4 Scan Component 2 | . . . 2 Repair 1 | . . . 1 Refit 1 | . . . 1 Recycling Unit Hacks 4 | . 3 . 1 Recycle Component 1 | . 1 . . Process 1 | . 1 . . Report Inventory 2 | . 1 . 1 Scanalyzer . | . . . . Garrison Access Hacks . | . . . . Unauthorized Hacks . | . . . . Terminals . | . . . . Fabricators . | . . . . Repair Stations . | . . . . Recycling Units . | . . . . Scanalyzers . | . . . . Garrison Access . | . . . . Data Cores Recovered 1 | . . . 1 Used . | . . . . Hacking Detections 7 | . 2 . 5 Full Trace Events 4 | . 1 . 3 Feedback Events . | . . . . Feedback Blocked . | . . . . Robot Schematics Acquired . | . . . . Robots Built . | . . . . Authchips . | . . . . Time . | . . . . Total Robot Build Rating . | . . . . Part Schematics Acquired . | . . . . Parts Built . | . . . . Authchips . | . . . . Time . | . . . . Total Part Build Rating . | . . . . Parts Repaired 1 | . . . 1 Time 26 | . . . 26 Parts Recycled 1 | . 1 . . Recycled Matter 85 | . 85 . . Retrieved Matter . | . . . . Retrieved Components . | . . . . Parts Scanalyzed . | . . . . Part Schematics Acquired . | . . . . Parts Damaged . | . . . . Bothacking | -11 -10 -10 -9 ------------ Run | Yrd Mat Min Mat Used RIF Installer . | . . . . Robots Hacked . | . . . . Non-combat . | . . . . Combat . | . . . . Robot Hacks Applied . | . . . . Relay Couplers Released . | . . . . Fabnet Peak Effective % . | . . . . Robots Rewired . | . . . . Allies Hacked . | . . . . Hacks Repelled . | . . . . Allies | -11 -10 -10 -9 -------- Run | Yrd Mat Min Mat Total Allies . | . . . . Largest Group . | . . . . Highest-Rated Group . | . . . . Highest-Rated Ally . | . . . . Total Orders . | . . . . Ally Attacks . | . . . . Total Damage . | . . . . Kills . | . . . . Allies Corrupted . | . . . . Allies Melted . | . . . . Intel | -11 -10 -10 -9 ------- Run | Yrd Mat Min Mat Robot Analysis Total 1 | . . . 1 Derelict Logs Recovered 1 | . . 1 . Drone Launches . | . . . . Drone Recoveries . | . . . . Exploration | -11 -10 -10 -9 ------------- Run | Yrd Mat Min Mat Turns Passed 2626 | 155 535 689 1247 Spaces Moved 1545 | 99 407 363 676 Core 19 | 17 . . 2 Treads 163 | . . . 163 Legs 1069 | 82 113 363 511 Wheels 294 | . 294 . . Hover . | . . . . Flight . | . . . . Fastest Speed 50 | 50 80 120 120 Average Speed 127 | 107 91 155 138 Slowest Speed 240 | 120 120 190 240 Overloaded Moves . | . . . . Propulsion Burnouts . | . . . . Robots Hopped . | . . . . Cave-ins Triggered . | . . . . Exploration Rate (%) 51 | 6 61 84 54 Regions Visited 3 Branch Regions 1 Pre-discovered Areas . | . . . . Known Exits Taken . | . . . . Unknown Exits Taken 3 | 1 1 1 . Scrap Searched 1 | . . 1 . Spaces Dug 26 | . . . 26 Terrain Destroyed 260 | . 53 84 123 Melee 26 | . . . 26 Projectile . | . . . . AOE 234 | . 53 84 97 Terrain Rammed . | . . . . Walls Destroyed . | . . . . Machines Disabled . | . . . . Actions | -11 -10 -10 -9 --------- Run | Yrd Mat Min Mat Total 1929 | 139 514 445 831 Wait 120 | 27 41 20 32 Move 1542 | 98 406 362 676 Hop . | . . . . Pick Up 24 | 4 10 1 9 Fast Attach 23 | 6 3 2 12 Attach 15 | . 7 4 4 Detach 2 | 1 1 . . Swap 17 | . 4 4 9 Drop 14 | . 7 . 7 Fire 97 | 3 28 37 29 Melee 60 | . 7 . 53 Ram . | . . . . Kick 15 | . . 15 . Crush . | . . . . Escape Stasis . | . . . . Rewire . | . . . . Trap . | . . . . Miscellaneous . | . . . . Route ------- -11/Scrapyard -10/Materials (discovered 2 exits: *Mat / [*Min]) -10/Mines (discovered 2 exits: *Mat x2) -9/Materials (discovered 2 exits: [*Mat x2]) History --------- Turn | Location | Event 2 | -11/Scrapyard | Met Revision 17 102 | -11/Scrapyard | Discovered new exit (range 8) 156 | -11/Scrapyard | Entered Materials 310 | -10/Materials | Build established: Mutant 490 | -10/Materials | Discovered new exit (range 12) 561 | -10/Materials | Destroyed 7 combat bots 648 | -10/Materials | Discovered new exit (range 5) 691 | -10/Materials | Entered Mines 799 | -10/Mines | Received a Rocket Launcher from a helpful Derelict 800 | -10/Mines | Discovered new exit (range 7) 819 | -10/Mines | Learned Materials terminal intel 931 | -10/Mines | Core integrity fell below 50% 961 | -10/Mines | Lost 3 parts (1p1n1w) 1285 | -10/Mines | Lost 3 parts (1p2w) 1318 | -10/Mines | Discovered new exit (range 12) 1380 | -10/Mines | Entered Materials 1380 | -9/Materials | Evolved 2 slots: Propulsion x1, Utility x1 1381 | -9/Materials | Loaded intel: 11 terminal locations 1858 | -9/Materials | Repaired Med. Storage Unit? 1955 | -9/Materials | System corruption reached 10% 2238 | -9/Materials | Core integrity fell below 50% 2351 | -9/Materials | Discovered new exit (range 16) 2514 | -9/Materials | Discovered new exit (range 16) 2583 | -9/Materials | Core integrity fell below 20% 2627 | -9/Materials | Destroyed by G-47 Trooper with Particle Gun Last Messages --------------- G-34 Mercenary destroyed. U-05 Engineer lays Concrete. K-01 Serf collects debris. U-05 Engineer lays Concrete. R-06 Scavenger collects Sml. Laser. U-05 Engineer lays Concrete. X# &LUN 2NW&YW#LL3&GSYSU4=J8CWY5LT7IIXMX Acquired 4 matter. K-01 Serf collects debris. U-05 Engineer lays Concrete. R-06 Scavenger collects Heat Sink. U-05 Engineer lays Concrete. K-01 Serf collects debris. U-05 Engineer lays Concrete. The unstable cave ceiling collapses. U-05 Engineer lays Concrete. The unstable cave ceiling collapses. U-05 Engineer lays Concrete. K-01 Serf collects debris. U-05 Engineer lays Concrete. Map ----- +----------------------------------------------------+ | ?????????????????????????????????????????????????? | | ????????????????????????""???????????????????????? | | ????????????????????????T"???????????????????????? | | ????????????????????????""???????????????????????? | | #?#??????????????????????????????????????????????? | | ????#????????????????????????????????????????????? | | ???#?????????????????????????????????????????????? | | ??#??????????????????????????????????????????????? | | ##???????????????????????????????????????????????? | | #???????????????????????????????????????????????? | | #???????????????????????????????????????????????? | | #?????????? ??#???????????#??????? #????????????? | | ##########+####??????????? ? #?? #????????????? | | #??????????? ? #==! #????????????? | | #??????????! #=!! #????????????? | | % #??????????! =!! #????????????? | | ####/####### #??????#???[ +????????????? | | # #???# #??#???????[ # ##????????????? | | # """ #???# #??????#??? g #????????????? | | # Y" #???# ##??????### % [ #????????????? | | # """ ##### T#???#### # #????????????? | | # + ##??## # %[ #????????????? | | # ##### ####### # # a +????????????? | | ####+###???# r = #????????????? | | #??#[#?????# % r #????????????? | | ??## ##????# #### # @ ! #????????????? | | ###[% ###### #??##### u % #????????????? | | T #?????## =% #????????????? | | ### ###### #?????# * #????????????? | | ############^^^#??#### "" #????????????? | | ## #^^^#??#[[ u """" #????????????? | | ## !! # #??#[[ u k """" ???????????? | | ## ! ! # #??#// % """" ??????????? | | ## !!! + #??#// """ ??????????? | | ?# %" #??#!! ??????????? | | ?# " #??#!! ??????????? | | ?# = " #??##### ??????????? | | ?# = " #??????# ??????????? | | ?###" "" #??????# " ??????????? | | ???# # #??????# T ???????????? | | ???###"""""# #??????# " ???????????? | | ######## #??????????? | | #??????????? | | ########### < #??????????? | | ################????????? ???????????? | | ????????????????????????? ???????????? | | ???????????"?????????????# % #????????????? | | ???????????"?????????????? ? #?????????????? | | ???????????"????????????????? ? ###?????????????? | | ???????????T?????????????????" ?#???????????????? | +----------------------------------------------------+ Best States ------------- Heat Dissipation 28 Energy Generation 14 Energy Capacity 280 Matter Stores 300 Matter Capacity 300 Sight Range 18 Robot Scan Range 14 Terrain Scan Range 14 Terrain Scan Density 10 Armor Coverage 150 Weapon Shielding 33 Evasion (%) 55 Recoil Reduction 2 Item Schematics ----------------- None Robot Schematics ------------------ None Fabricated ------------ Nothing Alien Tech Used ----------------- None Achievements -------------- Crack Shot Everything Is Under Control Part-time Excavator Remodeling System Compromised Challenges ------------ None Game ------ Seed NuclearTrackerTrap Manual? 0 Play Time 00:50:27 Cumulative 2.5 hours Start 2024.05.12 @ 20:51:46 End 2024.05.12 @ 21:57:59 Sessions 1 Manual Loads 0 Difficulty Rogue Special Mode None Game No. 2 Rogue 2 Adventurer 0 Explorer 0 Win Type - Total 0 Types 0/0/0/0/0/0/0/0/0 Lore% 1 Gallery% 5 Achievement% 5 Wizard Run 0 Options --------- Layout 1 ASCII 0 Keyboard 0 Movement Mouse Keybinds 0 Fullscreen 1 Font 32/SmallcapsGlow Map View 50x35 Zoom Use 0% Tactical HUD 0 Map Filters NONE Filters NONE Steam 1 RUN: a481fbbc-da9c-43ad-8df9-e8219bcb7c22